fUST/lending_fUST_20250505
["ID","MTS","AMOUNT","RATE_DAILY","PERIOD"]
[359891013,1746405040397,-64465.92437705,0.00035606,3]
[359891323,1746405043415,-469.0257257,0.00035606,3]
[359891325,1746405043427,-76050.416818,0.00035606,3]
[359891327,1746405043436,-161.08,0.00035606,3]
[359891329,1746405043446,-483.28,0.00035606,3]
[359891331,1746405043455,-400.0,0.00035616,14]
[359891333,1746405043465,-409.21233004,0.00035616,14]
[359891335,1746405043474,-400.0,0.00035616,14]
[359891337,1746405043485,-400.0,0.00035616,14]
[359891339,1746405043494,-400.0,0.00035616,14]
[359891342,1746405043503,-400.0,0.00035616,14]
[359891345,1746405043513,-400.0,0.00035616,14]
[359891347,1746405043522,-400.0,0.00035616,14]
[359891349,1746405043533,-400.0,0.00035616,14]
[359891351,1746405043542,-400.0,0.00035616,14]
[359891353,1746405043552,-400.0,0.00035616,14]
[359891355,1746405043561,-400.0,0.00035616,14]
[359891374,1746405043734,-400.0,0.00035616,14]
[359891376,1746405043743,-400.0,0.00035616,14]
[359891378,1746405043754,-426.35,0.00035616,14]
[359891380,1746405043764,-400.0,0.00035616,14]
[359891382,1746405043773,-400.0,0.00035616,14]
[359891384,1746405043783,-400.0,0.00035616,14]
[359891386,1746405043793,-400.0,0.00035616,14]
[359891388,1746405043802,-385.57422087,0.00035616,14]
[359891390,1746405043812,-400.0,0.00035616,14]
[359891392,1746405043822,-400.0,0.00035616,14]
[359891394,1746405043831,-400.0,0.00035616,14]
[359891397,1746405043841,-400.0,0.00035616,14]
[359891399,1746405043850,-400.0,0.00035616,2]
[359891401,1746405043860,-400.0,0.00035616,14]
[359891403,1746405043869,-400.0,0.00035616,14]
[359891405,1746405043879,-400.0,0.00035616,14]
[359891407,1746405043889,-301.64541736,0.00035616,14]
[359891409,1746405043899,-400.0,0.00035616,14]
[359891411,1746405043908,-400.0,0.00035616,14]
[359891413,1746405043918,-400.0,0.00035616,14]
[359891415,1746405043928,-400.0,0.00035616,14]
[359891417,1746405043938,-400.0,0.00035616,14]
[359891419,1746405043947,-400.0,0.00035616,14]
[359891421,1746405043956,-400.0,0.00035616,14]
[359891423,1746405043967,-400.0,0.00035616,14]
[359891425,1746405043980,-400.0,0.00035616,14]
[359891427,1746405043989,-400.0,0.00035616,14]
[359891429,1746405044000,-400.0,0.00035616,14]
[359891430,1746405044009,-400.0,0.00035616,14]
[359891431,1746405044019,-400.0,0.00035616,14]
[359891432,1746405044028,-400.0,0.00035616,14]
[359891433,1746405044037,-400.0,0.00035616,14]
[359891434,1746405044046,-525.59,0.00035616,14]
[359891435,1746405044056,-400.0,0.00035616,14]
[359891436,1746405044066,-400.0,0.00035616,14]
[359891437,1746405044075,-400.0,0.00035616,14]
[359891438,1746405044084,-400.0,0.00035616,14]
[359891439,1746405044093,-231.44414669,0.00035616,14]
[359891440,1746405044102,-400.0,0.00035616,14]
[359891441,1746405044111,-400.0,0.00035616,14]
[359891442,1746405044121,-400.0,0.00035616,14]
[359891443,1746405044130,-405.29499403,0.00035616,14]
[359891444,1746405044139,-400.0,0.00035616,14]
[359891446,1746405044148,-400.0,0.00035616,14]
[359891448,1746405044159,-400.0,0.00035616,14]
[359891450,1746405044169,-400.0,0.00035616,14]
[359891452,1746405044178,-400.0,0.00035616,14]
[359891454,1746405044188,-400.0,0.00035616,14]
[359891456,1746405044197,-400.0,0.00035616,14]
[359891458,1746405044207,-400.0,0.00035616,14]
[359891460,1746405044216,-400.0,0.00035616,14]
[359891462,1746405044225,-541.8784919,0.00035616,14]
[359891464,1746405044235,-400.0,0.00035616,14]
[359891466,1746405044244,-400.0,0.00035616,14]
[359891468,1746405044253,-400.0,0.00035616,14]
[359891470,1746405044263,-400.0,0.00035616,14]
[359891472,1746405044273,-400.0,0.00035616,14]
[359891474,1746405044282,-400.0,0.00035616,14]
[359891476,1746405044291,-400.0,0.00035616,14]
[359891478,1746405044300,-400.0,0.00035616,14]
[359891480,1746405044309,-400.0,0.00035616,14]
[359891482,1746405044319,-400.0,0.00035616,14]
[359891484,1746405044328,-400.0,0.00035616,14]
[359891485,1746405044337,-400.0,0.00035616,14]
[359891487,1746405044347,-169.23068128,0.00035616,14]
[359891489,1746405044356,-400.0,0.00035616,14]
[359891491,1746405044365,-400.0,0.00035616,14]
[359891493,1746405044376,-400.0,0.00035616,14]
[359891495,1746405044386,-400.0,0.00035616,14]
[359891497,1746405044396,-206.64767561,0.00035616,14]
[359891499,1746405044406,-400.0,0.00035616,14]
[359891501,1746405044416,-400.0,0.00035616,14]
[359891503,1746405044425,-638.3,0.00035616,14]
[359891505,1746405044434,-400.0,0.00035616,14]
[359891506,1746405044444,-400.0,0.00035616,14]
[359891508,1746405044454,-400.0,0.00035616,14]
[359891510,1746405044463,-400.0,0.00035616,14]
[359891512,1746405044474,-400.0,0.00035616,14]
[359891514,1746405044484,-425.36934998,0.00035616,14]
[359891516,1746405044493,-446.66291052,0.00035616,14]
[359891518,1746405044503,-400.0,0.00035616,14]
[359891520,1746405044512,-720.24,0.00035616,14]
[359891522,1746405044521,-400.0,0.00035616,14]
[359891524,1746405044531,-400.0,0.00035616,14]
[359891526,1746405044541,-400.0,0.00035616,14]
[359891528,1746405044550,-400.0,0.00035616,14]
[359891530,1746405044560,-400.0,0.00035616,14]
[359891532,1746405044570,-500.0,0.00035616,14]
[359891534,1746405044580,-500.0,0.00035616,14]
[359891536,1746405044590,-400.0,0.00035616,14]
[359891538,1746405044599,-500.0,0.00035616,14]
[359891540,1746405044609,-501.4479687,0.00035616,14]
[359891542,1746405044618,-400.0,0.00035616,14]
[359891544,1746405044628,-421.25233075,0.00035616,14]
[359891546,1746405044638,-465.71794123,0.00035616,14]
[359891548,1746405044647,-400.0,0.00035616,14]
[359891550,1746405044657,-526.95055878,0.00035616,14]
[359891552,1746405044667,-406.09089154,0.00035616,14]
[359891554,1746405044678,-511.54472949,0.00035616,14]
[359891556,1746405044688,-493.65912088,0.00035616,14]
[359891558,1746405044699,-695.26,0.00035616,14]
[359891560,1746405044709,-521.66444858,0.00035616,14]
[359891562,1746405044719,-500.0,0.00035616,14]
[359891564,1746405044728,-400.0,0.00035616,14]
[359891566,1746405044738,-500.0,0.00035616,14]
[359891568,1746405044747,-173.53269776,0.00035616,14]
[359891570,1746405044757,-400.0,0.00035616,14]
[359891572,1746405044766,-421.4844628,0.00035616,14]
[359891574,1746405044776,-416.95409386,0.00035616,14]
[359891576,1746405044787,-400.0,0.00035616,14]
[359891578,1746405044796,-2152.28,0.00035616,14]
[359891580,1746405044806,-400.0,0.00035616,14]
[359891582,1746405044816,-291.41736469,0.00035616,14]
[359891584,1746405044826,-400.0,0.00035616,14]
[359891586,1746405044835,-400.0,0.00035616,14]
[359891588,1746405044844,-400.0,0.00035616,14]
[359891590,1746405044855,-409.50742984,0.00035616,14]
[359891592,1746405044864,-500.0,0.00035616,14]
[359891594,1746405044874,-507.71144657,0.00035616,14]
[359891596,1746405044883,-491.88879236,0.00035616,14]
[359891598,1746405044893,-464.1,0.00035616,14]
[359891600,1746405044903,-400.0,0.00035616,14]
[359891602,1746405044912,-400.0,0.00035616,14]
[359891604,1746405044921,-400.0,0.00035616,14]
[359891606,1746405044931,-400.0,0.00035616,14]
[359891608,1746405044941,-1397.36,0.00035616,14]
[359891610,1746405044951,-1191.91,0.00035616,14]
[359891612,1746405044961,-400.0,0.00035616,14]
[359891614,1746405044974,-699.78,0.00035616,14]
[359891616,1746405044984,-241.99508724,0.00035616,14]
[359891618,1746405044993,-400.0,0.00035616,14]
[359891620,1746405045003,-795.94,0.00035616,14]
[359891622,1746405045015,-521.52368571,0.00035616,14]
[359891624,1746405045024,-1833.31,0.00035616,14]
[359891626,1746405045033,-400.0,0.00035616,14]
[359891628,1746405045044,-400.0,0.00035616,14]
[359891630,1746405045055,-400.0,0.00035616,14]
[359891632,1746405045065,-400.0,0.00035616,14]
[359891634,1746405045074,-400.0,0.00035616,14]
[359891636,1746405045084,-400.0,0.00035616,14]
[359891638,1746405045093,-400.0,0.00035616,14]
[359891640,1746405045103,-400.0,0.00035616,14]
[359891642,1746405045112,-400.0,0.00035616,14]
[359891644,1746405045121,-5896.68,0.00035616,14]
[359891646,1746405045131,-400.0,0.00035616,14]
[359891648,1746405045140,-400.0,0.00035616,14]
[359891650,1746405045150,-400.0,0.00035616,14]
[359891652,1746405045159,-8609.75,0.00035616,14]
[359891654,1746405045168,-8609.75,0.00035616,14]
[359891656,1746405045177,-8609.75,0.00035616,14]
[359891658,1746405045187,-8609.75,0.00035616,14]
[359891659,1746405045197,-8609.75,0.00035616,14]
[359891661,1746405045207,-8609.75,0.00035616,14]
[359891663,1746405045216,-8609.75,0.00035616,14]
[359891665,1746405045226,-8609.75,0.00035616,14]
[359891667,1746405045235,-8609.75,0.00035616,14]
[359891670,1746405045244,-8609.75,0.00035616,14]
[359891672,1746405045254,-400.0,0.00035616,14]
[359891674,1746405045263,-432.63,0.00035616,14]
[359891676,1746405045272,-400.0,0.00035616,14]
[359891677,1746405045281,-533.05,0.00035616,14]
[359891680,1746405045291,-400.0,0.00035616,14]
[359891682,1746405045301,-400.0,0.00035616,14]
[359891684,1746405045310,-400.0,0.00035616,14]
[359891686,1746405045319,-400.0,0.00035616,14]
[359891687,1746405045329,-1340.68,0.00035616,14]
[359891690,1746405045339,-1731.29,0.00035616,14]
[359891692,1746405045348,-400.0,0.00035616,14]
[359891694,1746405045358,-400.0,0.00035616,14]
[359891696,1746405045367,-400.0,0.00035616,14]
[359891698,1746405045376,-400.0,0.00035616,14]
[359891700,1746405045386,-400.0,0.00035616,14]
[359891702,1746405045395,-852.85,0.00035616,14]
[359891703,1746405045404,-400.0,0.00035616,14]
[359891705,1746405045413,-862.25,0.00035616,14]
[359891707,1746405045422,-400.0,0.00035616,14]
[359891709,1746405045432,-400.0,0.00035616,14]
[359891711,1746405045441,-400.0,0.00035616,14]
[359891713,1746405045452,-400.0,0.00035616,14]
[359891715,1746405045461,-400.0,0.00035616,14]
[359891717,1746405045470,-400.0,0.00035616,14]
[359891719,1746405045480,-697.98,0.00035616,14]
[359891721,1746405045489,-400.0,0.00035616,14]
[359891723,1746405045499,-433.33,0.00035616,14]
[359891725,1746405045508,-400.0,0.00035616,14]
[359891727,1746405045518,-504.24,0.00035616,14]
[359891730,1746405045529,-1204.34,0.00035616,14]
[359891732,1746405045539,-400.0,0.00035616,14]
[359891734,1746405045548,-411.95419612,0.00035616,14]
[359891736,1746405045558,-252.3256607,0.00035616,14]
[359891738,1746405045567,-400.0,0.00035616,14]
[359891740,1746405045577,-400.0,0.00035616,14]
[359891742,1746405045586,-956.57,0.00035616,14]
[359891744,1746405045596,-633.42,0.00035616,14]
[359891746,1746405045605,-400.0,0.00035616,8]
[359891748,1746405045614,-400.0,0.00035616,14]
[359891750,1746405045624,-400.0,0.00035616,14]
[359891753,1746405045634,-3219.54,0.00035616,14]
[359891755,1746405045643,-601.11,0.00035616,14]
[359891758,1746405045652,-400.0,0.00035616,14]
[359891760,1746405045662,-2405.1,0.00035616,14]
[359891763,1746405045671,-400.0,0.00035616,14]
[359891765,1746405045681,-400.0,0.00035616,14]
[359891767,1746405045691,-400.0,0.00035616,14]
[359891769,1746405045701,-1755.74,0.00035616,14]
[359891771,1746405045711,-400.0,0.00035616,14]
[359891773,1746405045720,-400.0,0.00035616,14]
[359891775,1746405045729,-400.0,0.00035616,14]
[359891777,1746405045738,-2918.31,0.00035616,14]
[359891781,1746405045748,-400.0,0.00035616,14]
[359891784,1746405045757,-400.0,0.00035616,14]
[359891786,1746405045766,-400.0,0.00035616,14]
[359891788,1746405045776,-400.0,0.00035616,14]
[359891790,1746405045785,-20520.99,0.00035616,14]
[359891792,1746405045794,-400.0,0.00035616,14]
[359891794,1746405045803,-400.0,0.00035616,14]
[359891796,1746405045813,-400.0,0.00035616,14]
[359891798,1746405045822,-400.0,0.00035616,14]
[359891800,1746405045831,-400.0,0.00035616,14]
[359891802,1746405045841,-400.0,0.00035616,14]
[359891804,1746405045851,-400.0,0.00035616,14]
[359891806,1746405045860,-538.49,0.00035616,14]
[359891808,1746405045870,-400.0,0.00035616,14]
[359891810,1746405045881,-1504.75,0.00035616,14]
[359891812,1746405045891,-748.49,0.00035616,14]
[359891814,1746405045900,-400.0,0.00035616,14]
[359891816,1746405045910,-400.0,0.00035616,14]
[359891818,1746405045919,-400.0,0.00035616,14]
[359891820,1746405045929,-400.0,0.00035616,14]
[359891822,1746405045938,-400.0,0.00035616,14]
[359891824,1746405045948,-400.0,0.00035616,14]
[359891826,1746405045957,-1467.15,0.00035616,14]
[359891828,1746405045966,-6025.57,0.00035616,14]
[359891830,1746405045979,-400.0,0.00035616,14]
[359891832,1746405045989,-400.0,0.00035616,14]
[359891834,1746405045998,-500.0,0.00035616,2]
[359891836,1746405046007,-500.0,0.00035616,2]
[359891838,1746405046017,-500.0,0.00035616,2]
[359891840,1746405046026,-6133.8,0.00035616,14]
[359891842,1746405046035,-500.0,0.00035616,2]
[359891844,1746405046045,-500.0,0.00035616,2]
[359891846,1746405046055,-577.14652587,0.00035616,2]
[359891848,1746405046064,-405.26294501,0.00035616,14]
[359891850,1746405046074,-400.0,0.00035616,14]
[359891852,1746405046083,-2481.33,0.00035616,14]
[359891854,1746405046092,-421.11,0.00035616,14]
[359891856,1746405046101,-400.0,0.00035616,14]
[359891858,1746405046111,-400.0,0.00035616,14]
[359891860,1746405046120,-400.0,0.00035616,14]
[359891862,1746405046129,-665.53,0.00035616,14]
[359891864,1746405046138,-400.0,0.00035616,14]
[359891866,1746405046147,-514.98909335,0.00035616,14]
[359891868,1746405046156,-476.63,0.00035616,14]
[359891870,1746405046166,-400.0,0.00035616,14]
[359891872,1746405046175,-2169.29,0.00035616,14]
[359891874,1746405046185,-400.0,0.00035616,14]
[359891876,1746405046194,-400.0,0.00035616,14]
[359891878,1746405046204,-400.0,0.00035616,14]
[359891880,1746405046214,-400.0,0.00035616,14]
[359891882,1746405046223,-400.0,0.00035616,14]
[359891884,1746405046233,-400.0,0.00035616,14]
[359891886,1746405046243,-400.0,0.00035616,14]
[359891888,1746405046252,-302.46121908,0.00035616,2]
[359891891,1746405046262,-400.0,0.00035616,14]
[359891894,1746405046272,-500.54552693,0.00035616,2]
[359891897,1746405046281,-401.55,0.00035616,14]
[359891900,1746405046290,-400.0,0.00035616,14]
[359891903,1746405046300,-1654.83783097,0.00035648,2]
[359891906,1746405046309,-503.12766346,0.00035673,5]
[359891908,1746405046319,-500.0,0.00035673,5]
[359891910,1746405046328,-500.0,0.00035673,5]
[359891913,1746405046338,-500.0,0.00035673,5]
[359891916,1746405046348,-500.0,0.00035673,5]
[359891919,1746405046357,-500.0,0.00035673,2]
[359891922,1746405046366,-150.8903401,0.00035673,5]
[359891925,1746405046375,-503.51089266,0.00035673,5]
[359891927,1746405046384,-500.0,0.00035673,5]
[359891929,1746405046394,-500.0,0.00035673,5]
[359891931,1746405046403,-300.0,0.00035673,5]
[359891933,1746405046412,-500.0,0.00035673,5]
[359891935,1746405046422,-1654.83783097,0.00035719,2]
[359891937,1746405046431,-791.14270611,0.00035777,2]
[359891939,1746405046440,-1654.83783097,0.0003579,2]
[359891941,1746405046449,-30653.121851,0.00035863,3]
[359891943,1746405046459,-30653.121851,0.0003587,3]
[359891945,1746405046468,-500.0,0.00035873,5]
[359891947,1746405046477,-500.0,0.00035873,5]
[359891949,1746405046487,-500.0,0.00035873,5]
[359891951,1746405046497,-500.0,0.00035873,5]
[359891953,1746405046506,-450.54130739,0.00035873,5]
[359891955,1746405046515,-500.0,0.00035873,5]
[359891957,1746405046524,-500.0,0.00035873,5]
[359891959,1746405046533,-500.0,0.00035873,5]
[359891961,1746405046543,-8609.75,0.0003588,14]
[359891963,1746405046551,-8609.75,0.0003588,14]
[359891965,1746405046561,-8609.75,0.0003588,14]
[359891967,1746405046570,-30653.121851,0.0003588,3]
[359891969,1746405046580,-8609.75,0.00035889,14]
[359891971,1746405046589,-8609.75,0.00035889,14]
[359891973,1746405046599,-8609.75,0.00035889,14]
[359891975,1746405046608,-8609.75,0.00035889,14]
[359891977,1746405046617,-400.0,0.0003589,14]
[359891979,1746405046626,-400.0,0.0003589,14]
[359891981,1746405046636,-400.0,0.0003589,14]
[359891983,1746405046645,-409.18180029,0.0003589,14]
[359891985,1746405046655,-400.0,0.0003589,14]
[359891987,1746405046664,-400.0,0.0003589,14]
[359891989,1746405046674,-400.0,0.0003589,14]
[359891991,1746405046683,-400.0,0.0003589,14]
[359891993,1746405046692,-400.0,0.0003589,14]
[359891995,1746405046702,-400.0,0.0003589,14]
[359891997,1746405046711,-400.0,0.0003589,14]
[359891999,1746405046721,-400.0,0.0003589,14]
[359892001,1746405046730,-400.0,0.0003589,14]
[359892003,1746405046739,-400.0,0.0003589,14]
[359892005,1746405046751,-400.0,0.0003589,14]
[359892008,1746405046761,-400.0,0.0003589,14]
[359892009,1746405046770,-400.0,0.0003589,14]
[359892011,1746405046780,-520.57015892,0.0003589,14]
[359892013,1746405046789,-400.0,0.0003589,14]
[359892015,1746405046798,-400.0,0.0003589,14]
[359892017,1746405046807,-400.0,0.0003589,14]
[359892019,1746405046817,-161.12,0.0003589,14]
[359892020,1746405046827,-409.37,0.0003589,14]
[359892021,1746405046837,-638.3,0.0003589,14]
[359892022,1746405046846,-400.0,0.0003589,14]
[359892023,1746405046855,-400.0,0.0003589,14]
[359892024,1746405046865,-720.24,0.0003589,14]
[359892025,1746405046874,-476.540513,0.0003589,14]
[359892026,1746405046884,-400.0,0.0003589,14]
[359892027,1746405046894,-400.0,0.0003589,14]
[359892028,1746405046903,-400.0,0.0003589,14]
[359892029,1746405046913,-234.63814772,0.0003589,14]
[359892030,1746405046923,-400.0,0.0003589,14]
[359892031,1746405046932,-400.0,0.0003589,14]
[359892032,1746405046942,-400.0,0.0003589,14]
[359892034,1746405046952,-695.26,0.0003589,14]
[359892036,1746405046961,-209.73,0.0003589,14]
[359892038,1746405046973,-2152.28,0.0003589,14]
[359892040,1746405046983,-400.0,0.0003589,14]
[359892042,1746405046992,-400.0,0.0003589,14]
[359892043,1746405047002,-419.98457254,0.0003589,14]
[359892045,1746405047011,-400.0,0.0003589,14]
[359892047,1746405047021,-464.1,0.0003589,14]
[359892049,1746405047031,-400.0,0.0003589,14]
[359892051,1746405047040,-400.0,0.0003589,14]
[359892054,1746405047050,-400.0,0.0003589,14]
[359892056,1746405047060,-400.0,0.0003589,14]
[359892058,1746405047070,-1397.36,0.0003589,14]
[359892060,1746405047079,-1191.91,0.0003589,14]
[359892062,1746405047088,-400.0,0.0003589,14]
[359892063,1746405047098,-699.78,0.0003589,14]
[359892066,1746405047107,-400.0,0.0003589,14]
[359892067,1746405047117,-795.94,0.0003589,14]
[359892069,1746405047126,-1833.31,0.0003589,14]
[359892072,1746405047137,-400.0,0.0003589,14]
[359892074,1746405047146,-400.0,0.0003589,14]
[359892076,1746405047156,-400.0,0.0003589,14]
[359892078,1746405047166,-400.0,0.0003589,14]
[359892080,1746405047175,-400.0,0.0003589,14]
[359892082,1746405047185,-400.0,0.0003589,14]
[359892084,1746405047194,-5896.68,0.0003589,14]
[359892086,1746405047204,-400.0,0.0003589,14]
[359892088,1746405047213,-400.0,0.0003589,14]
[359892090,1746405047223,-400.0,0.0003589,14]
[359892092,1746405047232,-432.63,0.0003589,14]
[359892094,1746405047241,-400.0,0.0003589,14]
[359892096,1746405047251,-533.05,0.0003589,14]
[359892098,1746405047260,-400.0,0.0003589,14]
[359892099,1746405047269,-400.0,0.0003589,14]
[359892102,1746405047279,-400.0,0.0003589,14]
[359892104,1746405047289,-1340.68,0.0003589,14]
[359892106,1746405047298,-1731.29,0.0003589,14]
[359892108,1746405047308,-400.0,0.0003589,14]
[359892110,1746405047317,-400.0,0.0003589,14]
[359892112,1746405047326,-400.0,0.0003589,14]
[359892114,1746405047336,-400.0,0.0003589,14]
[359892116,1746405047345,-400.0,0.0003589,14]
[359892118,1746405047354,-852.85,0.0003589,14]
[359892120,1746405047363,-862.25,0.0003589,14]
[359892122,1746405047373,-400.0,0.0003589,14]
[359892124,1746405047382,-400.0,0.0003589,14]
[359892126,1746405047391,-400.0,0.0003589,14]
[359892128,1746405047401,-400.0,0.0003589,14]
[359892130,1746405047410,-400.0,0.0003589,14]
[359892132,1746405047419,-400.0,0.0003589,14]
[359892134,1746405047429,-697.98,0.0003589,14]
[359892136,1746405047438,-400.0,0.0003589,14]
[359892138,1746405047447,-433.33,0.0003589,14]
[359892140,1746405047456,-504.24,0.0003589,14]
[359892142,1746405047466,-1204.34,0.0003589,14]
[359892144,1746405047476,-400.0,0.0003589,14]
[359892146,1746405047485,-400.0,0.0003589,14]
[359892148,1746405047495,-400.0,0.0003589,14]
[359892150,1746405047504,-956.57,0.0003589,14]
[359892152,1746405047513,-633.42,0.0003589,14]
[359892154,1746405047522,-400.0,0.0003589,8]
[359892156,1746405047531,-400.0,0.0003589,14]
[359892158,1746405047541,-400.0,0.0003589,14]
[359892160,1746405047550,-3219.54,0.0003589,14]
[359892175,1746405047684,-601.11,0.0003589,14]
[359892177,1746405047695,-400.0,0.0003589,14]
[359892179,1746405047705,-2405.1,0.0003589,14]
[359892182,1746405047714,-400.0,0.0003589,14]
[359892184,1746405047725,-400.0,0.0003589,14]
[359892186,1746405047734,-400.0,0.0003589,14]
[359892188,1746405047744,-1755.74,0.0003589,14]
[359892190,1746405047753,-400.0,0.0003589,14]
[359892192,1746405047762,-400.0,0.0003589,14]
[359892194,1746405047771,-400.0,0.0003589,14]
[359892195,1746405047781,-2918.31,0.0003589,14]
[359892197,1746405047790,-400.0,0.0003589,14]
[359892199,1746405047799,-400.0,0.0003589,14]
[359892202,1746405047809,-20520.99,0.0003589,14]
[359892204,1746405047819,-400.0,0.0003589,14]
[359892205,1746405047828,-400.0,0.0003589,14]
[359892207,1746405047838,-400.0,0.0003589,14]
[359892209,1746405047847,-400.0,0.0003589,14]
[359892211,1746405047856,-400.0,0.0003589,14]
[359892213,1746405047865,-400.0,0.0003589,14]
[359892216,1746405047876,-1504.75,0.0003589,14]
[359892218,1746405047886,-748.49,0.0003589,14]
[359892219,1746405047895,-400.0,0.0003589,14]
[359892222,1746405047906,-400.0,0.0003589,14]
[359892223,1746405047915,-400.0,0.0003589,14]
[359892226,1746405047926,-400.0,0.0003589,14]
[359892228,1746405047936,-400.0,0.0003589,14]
[359892230,1746405047946,-400.0,0.0003589,14]
[359892232,1746405047955,-1467.15,0.0003589,14]
[359892234,1746405047966,-6025.57,0.0003589,14]
[359892236,1746405047978,-400.0,0.0003589,14]
[359892238,1746405047987,-400.0,0.0003589,14]
[359892240,1746405047997,-6133.8,0.0003589,14]
[359892242,1746405048007,-400.0,0.0003589,14]
[359892244,1746405048017,-2481.33,0.0003589,14]
[359892246,1746405048027,-400.0,0.0003589,14]
[359892248,1746405048036,-665.53,0.0003589,14]
[359892250,1746405048046,-400.0,0.0003589,14]
[359892252,1746405048055,-2169.29,0.0003589,14]
[359892254,1746405048065,-400.0,0.0003589,14]
[359892256,1746405048074,-400.0,0.0003589,14]
[359892258,1746405048084,-400.0,0.0003589,14]
[359892260,1746405048093,-400.0,0.0003589,14]
[359892262,1746405048102,-496.87,0.0003589,14]
[359892264,1746405048112,-506.9294292,0.0003589,14]
[359892266,1746405048121,-213.0594553,0.000359,33]
[359892268,1746405048130,-8609.75,0.00036063,14]
[359892270,1746405048140,-500.0,0.00036083,60]
[359892272,1746405048149,-8609.75,0.00036153,14]
[359892274,1746405048158,-8609.75,0.00036162,14]
[359892276,1746405048167,-8609.75,0.00036162,14]
[359892278,1746405048176,-8609.75,0.00036162,14]
[359892280,1746405048185,-8609.75,0.00036162,14]
[359892282,1746405048195,-8609.92829611,0.00036162,14]
[359892284,1746405048204,-500.0,0.00036163,14]
[359892286,1746405048213,-400.0,0.00036164,14]
[359892288,1746405048222,-400.0,0.00036164,14]
[359892290,1746405048231,-400.0,0.00036164,14]
[359892292,1746405048240,-175.45884146,0.00036164,14]
[359892294,1746405048250,-400.0,0.00036164,14]
[359892296,1746405048259,-400.0,0.00036164,14]
[359892298,1746405048268,-400.0,0.00036164,14]
[359892300,1746405048278,-400.0,0.00036164,14]
[359892302,1746405048287,-400.0,0.00036164,14]
[359892304,1746405048296,-638.3,0.00036164,14]
[359892306,1746405048306,-400.0,0.00036164,14]
[359892308,1746405048316,-400.0,0.00036164,14]
[359892311,1746405048326,-720.24,0.00036164,14]
[359892312,1746405048335,-400.0,0.00036164,14]
[359892314,1746405048345,-400.0,0.00036164,14]
[359892316,1746405048355,-402.752077,0.00036164,14]
[359892319,1746405048364,-400.0,0.00036164,14]
[359892321,1746405048374,-400.0,0.00036164,14]
[359892323,1746405048383,-400.0,0.00036164,14]
[359892324,1746405048392,-695.26,0.00036164,14]
[359892326,1746405048401,-2152.28,0.00036164,14]
[359892328,1746405048411,-400.0,0.00036164,14]
[359892331,1746405048420,-400.0,0.00036164,14]
[359892333,1746405048430,-400.0,0.00036164,14]
[359892334,1746405048440,-464.1,0.00036164,14]
[359892337,1746405048450,-400.0,0.00036164,14]
[359892338,1746405048459,-232.15029405,0.00036164,14]
[359892340,1746405048468,-400.0,0.00036164,14]